Cogmind - Beta 16 @@@ ROGUE MODE // 2025.12.07 @ 11:08:19 Player: Plexion Result: Destroyed by D-53 Grenadier with Mini Grenade Launcher Performance ------------- Evolutions (0) 0 Regions Visited (2) 400 Robots Destroyed (13) 65 Value Destroyed (199) 199 Prototype IDs (0) 0 Alien Tech Used (0) 0 Bonus (0) 0 TOTAL SCORE: 664 Bonus ------- None Cogmind --------- Core Integrity 0/250 Matter 161/300 Energy 100/100 System Corruption 9% Temperature Cool (0) Movement Core (350) Ox6 Location -10/Mines Parts ------- > --- POWER (1) -------- (None) > --- PROPULSION (2) --- (None) > --- UTILITY (2) ------ Large Storage Unit > --- WEAPON (2) ------- (None) > --- INVENTORY (15) --- Medium Storage Unit Machine Analyzer EM Pulse Gun Assault Rifle Grenade Launcher Grenade Launcher Peak State ------------ > --- POWER ------------ Light Ion Engine > --- PROPULSION ------- Light Treads Light Treads > --- UTILITY ---------- Small Storage Unit Seismic Detector > --- WEAPON ----------- Assault Rifle Assault Rifle > --- INVENTORY -------- Light Ion Engine Wheel Wheel Machine Analyzer EM Pulse Gun Grenade Launcher Grenade Launcher Grenade Launcher [Rating: 8] Favorites ----------- Power Light Ion Engine Engine Light Ion Engine Propulsion Light Treads Treads Light Treads Wheel Wheel Utility Seismic Detector Device Seismic Detector Storage Small Storage Unit Weapon Assault Rifle Ballistic Gun Assault Rifle Launcher Grenade Launcher Build | -11 -10 -10 ------- Run | Yrd Mat Min Slots Evolved . | . . . Power . | . . . Propulsion . | . . . Utility . | . . . Weapon . | . . . Parts Attached 13 | 7 3 3 Power 2 | 1 . 1 Engine 2 | 1 . 1 Core . | . . . Reactor . | . . . Propulsion 4 | 2 1 1 Treads 3 | 2 1 . Leg . | . . . Wheel 1 | . . 1 Hover . | . . . Flight . | . . . Utility 4 | 2 2 . Device 1 | 1 . . Storage 3 | 1 2 . Processor . | . . . Hackware . | . . . Protection . | . . . Artifact . | . . . Weapon 3 | 2 . 1 Energy Gun . | . . . Energy Cannon . | . . . Ballistic Gun 2 | 2 . . Ballistic Cannon . | . . . Launcher 1 | . . 1 Special Weapon . | . . . Impact Weapon . | . . . Slashing Weapon . | . . . Piercing Weapon . | . . . Special Melee Weapon . | . . . Unidentified Prototypes . | . . . Parts Lost 9 | . . 9 Power 2 | . . 2 Propulsion 4 | . . 4 Utility 1 | . . 1 Weapon 2 | . . 2 Highest Loss Streak 9 | . . 9 To Critical Strikes . | . . . Average Backups 6 | 2 6 8 Power . | . 1 . Propulsion 1 | 1 2 1 Utility 1 | . . 2 Weapon 2 | . 2 4 Tool/Special . | . . . Unused Backups 5 | . 1 4 Power . | . . . Propulsion 1 | . 1 . Utility 1 | . . 1 Weapon 3 | . . 3 Tool/Special . | . . . Average Slot Usage (%) 96 | . 97 93 Engine 13 | . 14 13 Treads 27 | . 28 25 Device 11 | . 11 12 Storage 14 | . 14 14 Ballistic Gun 27 | . 28 25 Peak Build Rating 8 | 7 8 8 Average Rating 7 | 5 7 7 On Entrance 5 | . 7 8 Avg Prop Armor Cover (%) . | . . . Naked Turns . | . . . Heaviest Build 28 | 13 28 28 Greatest Support 40 | 40 40 40 Greatest Overweight (x) . | . . . Average Overweight (x) . | . . . Largest Inventory Capacity 15 | 8 15 15 Average Capacity 10 | 6 9 15 Most Carried 10 | 4 10 9 Average Carried 6 | 2 6 8 Final Capacity 15 | 8 15 15 Final Carried 9 | 4 9 6 Class Distribution -------------------- 100% | Mutant Dominant Class ---------------- Mutant | -10/Materials Mutant | -10/Mines Resources | -11 -10 -10 ----------- Run | Yrd Mat Min Matter Collected 496 | 168 293 35 Remotely . | . . . Salvage Created 385 | 11 308 66 Parts 29 | 3 24 2 Haulers Intercepted 2 | . 2 . Recyclers Shooed . | . . . Parts Field Recycled . | . . . Retrieved Matter . | . . . Parts Self-Destructed . | . . . Prevented . | . . . Parts Restored . | . . . Kills | -11 -10 -10 ------- Run | Yrd Mat Min Combat Hostiles Destroyed 14 | . 8 6 Guns 9 | . 8 1 AOE 5 | . . 5 Classes Destroyed 6 | 1 4 1 Tunneler 1 | 1 . . Hauler 2 | . 2 . Mechanic 1 | . 1 . Swarmer 6 | . 6 . Grunt 3 | . 2 1 Assembled 5 | . . 5 Best Kill Streak 6 | 1 4 6 Combat Bots Only 6 | . 3 6 Max Kills in Single Turn 3 | 1 1 3 Gunslinging . | . . . Exploded 3 | . . 3 Melee . | . . . Uniques/NPCs Destroyed . | . . . Combat | -11 -10 -10 -------- Run | Yrd Mat Min Hostile Shots Fired 78 | . 39 39 Missed 19 | . 8 11 Hits 59 | . 31 28 Melee 7 | . . 7 Projectile 52 | . 31 21 AOE 14 | . . 14 Critical Strikes 2 | . . 2 Part Disruptions 1 | . . 1 Damage Taken 1209 | . 304 905 Core 289 | . 57 232 Absorbed by Shields . | . . . Core Remaining (%) 100 | 100 . . Volleys Fired 44 | 1 37 6 Largest 2 | 2 2 2 Hottest 50 | 40 40 50 Shots Fired 87 | 2 74 11 Gun 85 | 2 74 9 Cannon . | . . . Launcher 2 | . . 2 Special . | . . . Kinetic 85 | 2 74 9 Thermal . | . . . Explosive 2 | . . 2 Electromagnetic . | . . . Robot Hit Streak 10 | 1 10 6 Robot Miss Streak 5 | . 5 2 Penetration Max . | . . . Secondary Targets 1 | . 1 . Max Gunslinging Chain 1 | . 1 . Shots Hit Robots 55 | 1 47 7 Core Hits 35 | 1 17 17 Critical Kills . | . . . Critical Parts Destroyed . | . . . Critical Strikes . | . . . Melee Attacks . | . . . Impact . | . . . Slashing . | . . . Piercing . | . . . Sneak Attacks . | . . . Combat Hostiles . | . . . Follow-up Attacks . | . . . Damage Inflicted 947 | 11 591 345 Guns 680 | 11 591 78 Cannons . | . . . Explosions 267 | . . 267 Melee . | . . . Ramming . | . . . Kinetic 680 | 11 591 78 Thermal . | . . . Explosive 267 | . . 267 Electromagnetic . | . . . Impact . | . . . Slashing . | . . . Piercing . | . . . Highest Corruption 9 | . 2 9 Average Corruption 2 | . 1 2 Corruption Purged . | . . . Corruption Blocked . | . . . Effects 7 | . 4 3 Message Errors 2 | . 1 1 Matter Fused 1 | . 1 . Heat Flow Errors 1 | . . 1 Energy Discharges 1 | . . 1 Data Loss (minor) 2 | . 2 . Overload Shots . | . . . Overflow Damage 9 | . . 9 Projectiles . | . . . Explosions 9 | . . 9 Melee . | . . . Knockbacks . | . . . Impact . | . . . Kinetic . | . . . Secondary . | . . . Self-Inflicted Damage 72 | . . 72 Shots 2 | . . 2 Rammed . | . . . Targets Rammed . | . . . Kicked . | . . . Crushed . | . . . Highest Temperature 104 | . . 104 Average Temperature 33 | . . 33 Received Heat Transfer 193 | . 102 91 Siege Activations . | . . . Martial Activations . | . . . Shielding Activations . | . . . Robots Disrupted . | . . . Combat Hostiles . | . . . Robots Corrupted . | . . . Combat Hostiles . | . . . Parts Fried . | . . . Impact Corruptions . | . . . Robots Melted . | . . . Combat Hostiles . | . . . Parts Melted . | . . . Heat Transferred . | . . . Parts Sabotaged . | . . . Parts Stolen . | . . . Parts Stripped . | . . . Power Chain Reactions . | . . . Alert | -11 -10 -10 ------- Run | Yrd Mat Min Maximum Alert Level . | . . . Low Security (%) 100 | 100 100 100 Level 1 . | . . . Level 2 . | . . . Level 3 . | . . . Level 4 . | . . . Level 5 . | . . . High Security . | . . . Max Security . | . . . Peak Influence 71 | 5 71 30 Initial . | . . . Average 16 | . 22 1 Influence Increases 310 | 5 263 42 Destroy 0b10 Robot/C 180 | . 160 20 Destroy 0b10 Robot/NC 20 | 5 15 . Destroy Leader 44 | . 34 10 Successful Hack 23 | . 23 . Destroy Structure 13 | . 1 12 Lose Combat Pursuer 30 | . 30 . Influence Decreases 310 | 5 263 42 Time Decay 278 | 5 263 10 Lost Part 32 | . . 32 Squads Dispatched 2 | . 2 . Investigation 2 | . 2 . Extermination . | . . . Reinforcement . | . . . Assault . | . . . Garrison . | . . . Intercept . | . . . Searches Triggered . | . . . Construction Impeded . | . . . Haulers Reinforced . | . . . Active Scanning Responses . | . . . Cargo Convoy Interrupts . | . . . Stealth | -11 -10 -10 --------- Run | Yrd Mat Min Distress Signals 1 | . . 1 Communications Jammed . | . . . Distress Signals . | . . . Times Spotted 31 | . 17 14 Peak Tracking Total 10 | . 3 10 Tactical Retreats 1 | . 1 . Traps | -11 -10 -10 ------- Run | Yrd Mat Min Traps Triggered 4 | . 4 . Indirectly . | . . . Trap Hack Attempts . | . . . Triggered . | . . . Disarmed . | . . . Reprogrammed . | . . . Reused . | . . . Traps Extracted . | . . . Installed . | . . . Triggered . | . . . Machines | -11 -10 -10 ---------- Run | Yrd Mat Min Machines Disabled . | . . . Max in Single Turn . | . . . Machines Repaired . | . . . Machines Dismantled . | . . . Machines Sabotaged . | . . . Overloaded Fab Kills . | . . . Hacking | -11 -10 -10 --------- Run | Yrd Mat Min Machines Accessed 6 | . 6 . Terminals 6 | . 6 . Fabricators . | . . . Repair Stations . | . . . Recycling Units . | . . . Scanalyzers . | . . . Garrison Access . | . . . Total Hacks 16 | . 16 . Successful 8 | . 8 . Failed 8 | . 8 . Catastrophic 1 | . 1 . Database Lockouts . | . . . Manual 15 | . 15 . Terminals 16 | . 16 . Fabricators . | . . . Repair Stations . | . . . Recycling Units . | . . . Scanalyzers . | . . . Garrison Access . | . . . Terminal Hacks . | . . . Fabricator Hacks . | . . . Repair Station Hacks . | . . . Recycling Unit Hacks . | . . . Scanalyzer . | . . . Garrison Access Hacks . | . . . Unauthorized Hacks 8 | . 8 . Terminals 8 | . 8 . Botnet 1 | . 1 . Operators 2 | . 2 . Skim 5 | . 5 . Fabricators . | . . . Repair Stations . | . . . Recycling Units . | . . . Scanalyzers . | . . . Garrison Access . | . . . Data Cores Recovered . | . . . Used . | . . . Hacking Detections 6 | . 6 . Full Trace Events . | . . . Feedback Events . | . . . Feedback Blocked . | . . . Robot Schematics Acquired . | . . . Robots Built . | . . . Authchips . | . . . Time . | . . . Total Robot Build Rating . | . . . Part Schematics Acquired . | . . . Parts Built . | . . . Authchips . | . . . Time . | . . . Total Part Build Rating . | . . . Part Studies Acquired . | . . . Parts Repaired . | . . . Time . | . . . Parts Recycled . | . . . Recycled Matter . | . . . Retrieved Matter . | . . . Retrieved Components . | . . . Parts Scanalyzed . | . . . Part Schematics Acquired . | . . . Parts Damaged . | . . . Bothacking | -11 -10 -10 ------------ Run | Yrd Mat Min Used RIF Installer . | . . . Robots Hacked . | . . . Non-combat . | . . . Combat . | . . . Robot Hacks Applied . | . . . Relay Couplers Released . | . . . Fabnet Peak Effective % . | . . . Robots Rewired . | . . . Allies Hacked . | . . . Hacks Repelled . | . . . Allies | -11 -10 -10 -------- Run | Yrd Mat Min Total Allies . | . . . Largest Group . | . . . Highest-Rated Group . | . . . Highest-Rated Ally . | . . . Total Orders . | . . . Ally Attacks . | . . . Total Damage . | . . . Kills . | . . . Allies Corrupted . | . . . Allies Melted . | . . . Intel | -11 -10 -10 ------- Run | Yrd Mat Min Active Infowar (turns) 940 | 23 702 215 Seismic 940 | 23 702 215 Robot Analysis Total . | . . . Derelict Logs Recovered 1 | . . 1 Drone Launches . | . . . Drone Recoveries . | . . . Exploration | -11 -10 -10 ------------- Run | Yrd Mat Min Turns Passed 1180 | 94 845 241 Spaces Moved 591 | 51 413 127 Core 4 | 4 . . Treads 587 | 47 413 127 Legs . | . . . Wheels . | . . . Hover . | . . . Flight . | . . . Fastest Speed 50 | 50 160 160 Average Speed 159 | 151 160 160 Slowest Speed 160 | 160 160 160 Overloaded Moves . | . . . Propulsion Burnouts . | . . . Robots Hopped . | . . . Potential Cave-ins . | . . . Cave-ins Triggered . | . . . Exploration Rate (%) 41 | 4 84 37 Regions Visited 2 Branch Regions 1 Pre-discovered Areas 1 | . . 1 Known Exits Taken 1 | . 1 . Unknown Exits Taken 1 | 1 . . Scrap Searched 1 | . . 1 Spaces Dug . | . . . Terrain Destroyed 15 | . . 15 Melee . | . . . Projectile . | . . . AOE 15 | . . 15 Terrain Rammed . | . . . Walls Destroyed . | . . . Machines Disabled . | . . . Actions | -11 -10 -10 --------- Run | Yrd Mat Min Total 741 | 62 526 153 Wait 72 | . 58 14 Move 589 | 50 412 127 Hop . | . . . Pick Up 9 | 4 5 . Fast Attach 9 | 7 . 2 Attach 7 | . 4 3 Detach 4 | . 4 . Swap 4 | . 3 1 Drop 3 | . 3 . Fire 44 | 1 37 6 Melee . | . . . Ram . | . . . Kick . | . . . Crush . | . . . Escape Stasis . | . . . Rewire . | . . . Trap . | . . . Miscellaneous . | . . . Route ------- -11/Scrapyard -10/Materials (discovered 5 exits: *Mat x3 / *Min / Sub) -10/Mines (discovered 4 exits: *Mat x2 / Exi / Sub) History --------- Turn | Location | Event 11 | -11/Scrapyard | Discovered new exit (range 15) 95 | -11/Scrapyard | Entered Materials 309 | -10/Materials | Build established: Mutant 347 | -10/Materials | Discovered new exit (range 5) 558 | -10/Materials | Discovered new exit (range 13) 785 | -10/Materials | Identified exit to Materials 825 | -10/Materials | Learned 2 Mines zone layouts 855 | -10/Materials | Identified exit to Mines 873 | -10/Materials | Learned location of 2 exits from Mines 880 | -10/Materials | Identified exit to Subcaves 887 | -10/Materials | Learned 2 Mines zone layouts 905 | -10/Materials | Loaded intel: 24 non-interactive machine locations 933 | -10/Materials | Learned Storage trap positions 940 | -10/Materials | Entered Mines 941 | -10/Mines | Learned location of Storage (-7) 942 | -10/Mines | Identified exit to Exiles 1108 | -10/Mines | Learned 8 Materials zone layouts 1117 | -10/Mines | Assembled infested the area 1161 | -10/Mines | Core integrity fell below 50% 1178 | -10/Mines | Core integrity fell below 20% 1181 | -10/Mines | Destroyed by D-53 Grenadier with Mini Grenade Launcher Last Messages --------------- 01163_ The unstable cave ceiling collapses. 01163_ Assault Rifle destroyed. 01163_ Lgt. Treads destroyed. 01163_ as-80388 destroyed. 01163_ as-36340 destroyed. 01164_ The unstable cave ceiling collapses. 01164_ as-77701 destroyed. 01164_ Lgt. Treads destroyed. 01166_ K-01 Serf collects debris. 01167_ Lgt. Treads destroyed. 01169_ The unstable cave ceiling collapses. 01169_ K-01 Serf collects debris. 01170_ The unstable cave ceiling collapses. 01171_ Wheel destroyed. 01171_ Lgt. Ion Engine destroyed. 01172_ D-53 Grenadier destroyed. 01173_ K-01 Serf collects debris. 01175_ The unstable cave ceiling collapses. 01177_ U-05 Engineer lays Concrete. 01179_ U-05 Engineer builds a Wall. Map ----- +----------------------------------------------------+ | ?????????????????????????????????????????????????? | | ?????????????????????????????????????????????????? | | ??????????????????????????????????#####??????????? | | ??????????????????????????######### ##?????????? | | ??????????????????????????# ##????????? | | ??????????????????????????# ###### ####?????? | | ??????????????????????????# #????# ##????? | | ??????????????????????????#[#????# #????? | | ??????????????????????????# #????## ## ##???? | | ??????????????????????????# #?????###### ###?? | | ??????????????????????????# #??????????## #?? | | ??????????????????????????# #??####?????# #?? | | ?????????????????????????## #### ##???## #?? | | ?????????????????????????# ##??# #?? | | ?????????????????????????# ### #??# ##? | | ???????????????????????### # ##?# ## | | ??????????????????????## # ### # | | ?????????????????????## % ## ### # | | ????????????????????## ### ##### | | ????????#??????????## #### #??## | | ???????? ####### #?## ##??# | | ???????? % #??####???# | | ???????? #????????## | | ????????? ## #### ##????????# | | ??????????????????# #????????# | | ????? ### #?# @ #????????## | | ????? #?##k d ###?????????# ## # | | ?????## ######?# #???????????# ## # | | ??????######?????## ##???????????# ## # | | ?????????????????# ! ##????????????# ## # | | ????????????????## % ####????????# ## # | | ?????##????????## # # #????????# # | | ????? #???????## #### u #???????## # | | ????? #??????## #### ### #???????# | | ?????##?????## #?# ##?# #???????# | | ?????#??????# #?# < ##??# #???????## | | ?????#??????# #?## ##???# #????????### | | ?????#??????## ##??#####????# #??????????## | | ?????#??????## #?####???????# #???????????## | | ?????##????## ### ##??????# #????????????# | | ????? #???## ### #??????# #???????????## < | | ????? ##??# #?# #??????# ####????????# | | ????? ##?# ##?# #??????# #???????## | | ????? #?## ###?## ##??????#### #???????# "" | | ????? #??####??## ##??????????# #???????# "" | | ????? ##???????## #???????????# #???????## "" | | ????? ##????????# ##???????????# #????????# | | ?????#####??????# ##???????????## ##??????## | | ?????## ######## ##????????????# ##????## | | ????? ##????????????# ###### | +----------------------------------------------------+ Best States ------------- Heat Dissipation 25 Energy Generation 10 Energy Capacity 125 Matter Stores 223 Matter Capacity 300 Sight Range 16 Terrain Scan Density 10 Evasion (%) 40 Recoil Reduction 2 Item Schematics ----------------- None Robot Schematics ------------------ None Fabricated ------------ Nothing Repaired ---------- Nothing Studied --------- None Alien Tech Used ----------------- None Achievements -------------- None Challenges ------------ None Game ------ Seed BiometalImpactArticulator Manual? 0 Play Time 00:07:03 Cumulative 918.2 hours Start 2025.12.07 @ 11:02:29 End 2025.12.07 @ 11:08:19 Sessions 1 Manual Loads 0 Difficulty Rogue Special Mode None Game No. 829 Rogue 742 Adventurer 87 Explorer 0 Win Type - Total 61 Types 9/7/32/2/1/1/5/1/1/2 Lore% 97 Gallery% 93 Achievement% 70 Wizard Run 0 Options --------- Layout 0 ASCII 0 Keyboard 1 Movement Numpad Keybinds 0 Fullscreen 2 Font 18/SmallcapsGlow Map View 76x50 Zoom Use 0% Tactical HUD 1 Map Filters NONE Filters NONE Steam 1 RUN: b6bb568b-17b7-4d7a-9b70-8d6c13c85f36